{"text_format":"3","workbook":"xlsx","n_sheets":2,"sheets":["Projektnyilvántartás","Beállítás"],"not_rendered":{"defined_names":6},"read":"whole","date_system":"1900"}

{"sheet":"Projektnyilvántartás","index":0,"n_rows":13,"n_cols":15,"rows_kept":13}
[null,"Projektnyilvántartás"]
[null,null,"Megjelölés százalékhatára: ",{"v":0.25,"d":"25%"}]
[]
[null,"Projekt","Kategória","Felelős","Becsült\nkezdési dátum","Becsült \nbefejezési dátum","Becsült munkaidő (óra)","Becsült időtartam (nap)","Tényleges \nkezdési dátum","Tényleges\nbefejezési dátum","Megjelölésre szolgáló ikon a tényleges munkaidő (óra) százalékhatárához","Tényleges munkaidő (óra)","Megjelölésre szolgáló ikon a tényleges időtartam (nap) százalékhatárához","Tényleges időtartam (nap)","Megjegyzések"]
[null,"1. projekt","1. kategória","1. alkalmazott",{"$f":"TODAY()-65","v":"2017-01-31"},{"$f":"TODAY()-5","v":"2017-04-01"},210,{"$f":"IF(COUNTA(Projektnyilvántartás!$E5,Projektnyilvántartás!$F5)<>2,\"\",DAYS360(Projektnyilvántartás!$E5,Projektnyilvántartás!$F5,FALSE))","v":61},{"$f":"TODAY()-65","v":"2017-01-31"},{"$f":"TODAY()","v":"2017-04-06"},{"$f":"IFERROR(IF(Projektnyilvántartás[Tényleges munkaidő (óra)]=0,\"\",IF(ABS((Projektnyilvántartás[[#This Row],[Tényleges munkaidő (óra)]]-Projektnyilvántartás[[#This Row],[Becsült munkaidő (óra)]])/Projektnyilvántartás[[#This Row],[Becsült munkaidő (óra)]])>MegjelölésiSzázalék,1,0)),\"\")","v":1},300,{"$f":"IFERROR(IF(Projektnyilvántartás[Tényleges időtartam (nap)]=0,\"\",IF(ABS((Projektnyilvántartás[[#This Row],[Tényleges időtartam (nap)]]-Projektnyilvántartás[[#This Row],[Becsült időtartam (nap)]])/Projektnyilvántartás[[#This Row],[Becsült időtartam (nap)]])>MegjelölésiSzázalék,1,0)),\"\")","v":0},{"$f":"IF(COUNTA(Projektnyilvántartás!$I5,Projektnyilvántartás!$J5)<>2,\"\",DAYS360(Projektnyilvántartás!$I5,Projektnyilvántartás!$J5,FALSE))","v":66}]
[null,"2. projekt","2. kategória","4. alkalmazott",{"$f":"TODAY()-41","v":"2017-02-24"},{"$f":"TODAY()-10","v":"2017-03-27"},400,{"$f":"IF(COUNTA(Projektnyilvántartás!$E6,Projektnyilvántartás!$F6)<>2,\"\",DAYS360(Projektnyilvántartás!$E6,Projektnyilvántartás!$F6,FALSE))","v":33},{"$f":"TODAY()-41","v":"2017-02-24"},{"$f":"TODAY()-7","v":"2017-03-30"},{"$f":"IFERROR(IF(Projektnyilvántartás[Tényleges munkaidő (óra)]=0,\"\",IF(ABS((Projektnyilvántartás[[#This Row],[Tényleges munkaidő (óra)]]-Projektnyilvántartás[[#This Row],[Becsült munkaidő (óra)]])/Projektnyilvántartás[[#This Row],[Becsült munkaidő (óra)]])>MegjelölésiSzázalék,1,0)),\"\")","v":0},390,{"$f":"IFERROR(IF(Projektnyilvántartás[Tényleges időtartam (nap)]=0,\"\",IF(ABS((Projektnyilvántartás[[#This Row],[Tényleges időtartam (nap)]]-Projektnyilvántartás[[#This Row],[Becsült időtartam (nap)]])/Projektnyilvántartás[[#This Row],[Becsült időtartam (nap)]])>MegjelölésiSzázalék,1,0)),\"\")","v":0},{"$f":"IF(COUNTA(Projektnyilvántartás!$I6,Projektnyilvántartás!$J6)<>2,\"\",DAYS360(Projektnyilvántartás!$I6,Projektnyilvántartás!$J6,FALSE))","v":36}]
[null,"3. projekt","1. kategória","2. alkalmazott",{"$f":"TODAY()-100","v":"2016-12-27"},{"$f":"TODAY()-40","v":"2017-02-25"},500,{"$f":"IF(COUNTA(Projektnyilvántartás!$E7,Projektnyilvántartás!$F7)<>2,\"\",DAYS360(Projektnyilvántartás!$E7,Projektnyilvántartás!$F7,FALSE))","v":58},{"$f":"TODAY()-100","v":"2016-12-27"},{"$f":"TODAY()-27","v":"2017-03-10"},{"$f":"IFERROR(IF(Projektnyilvántartás[Tényleges munkaidő (óra)]=0,\"\",IF(ABS((Projektnyilvántartás[[#This Row],[Tényleges munkaidő (óra)]]-Projektnyilvántartás[[#This Row],[Becsült munkaidő (óra)]])/Projektnyilvántartás[[#This Row],[Becsült munkaidő (óra)]])>MegjelölésiSzázalék,1,0)),\"\")","v":0},500,{"$f":"IFERROR(IF(Projektnyilvántartás[Tényleges időtartam (nap)]=0,\"\",IF(ABS((Projektnyilvántartás[[#This Row],[Tényleges időtartam (nap)]]-Projektnyilvántartás[[#This Row],[Becsült időtartam (nap)]])/Projektnyilvántartás[[#This Row],[Becsült időtartam (nap)]])>MegjelölésiSzázalék,1,0)),\"\")","v":1},{"$f":"IF(COUNTA(Projektnyilvántartás!$I7,Projektnyilvántartás!$J7)<>2,\"\",DAYS360(Projektnyilvántartás!$I7,Projektnyilvántartás!$J7,FALSE))","v":73}]
[null,"4. projekt","2. kategória","3. alkalmazott",{"$f":"TODAY()-90","v":"2017-01-06"},{"$f":"TODAY()-80","v":"2017-01-16"},250,{"$f":"IF(COUNTA(Projektnyilvántartás!$E8,Projektnyilvántartás!$F8)<>2,\"\",DAYS360(Projektnyilvántartás!$E8,Projektnyilvántartás!$F8,FALSE))","v":10},{"$f":"TODAY()-90","v":"2017-01-06"},{"$f":"TODAY()-71","v":"2017-01-25"},{"$f":"IFERROR(IF(Projektnyilvántartás[Tényleges munkaidő (óra)]=0,\"\",IF(ABS((Projektnyilvántartás[[#This Row],[Tényleges munkaidő (óra)]]-Projektnyilvántartás[[#This Row],[Becsült munkaidő (óra)]])/Projektnyilvántartás[[#This Row],[Becsült munkaidő (óra)]])>MegjelölésiSzázalék,1,0)),\"\")","v":0},276,{"$f":"IFERROR(IF(Projektnyilvántartás[Tényleges időtartam (nap)]=0,\"\",IF(ABS((Projektnyilvántartás[[#This Row],[Tényleges időtartam (nap)]]-Projektnyilvántartás[[#This Row],[Becsült időtartam (nap)]])/Projektnyilvántartás[[#This Row],[Becsült időtartam (nap)]])>MegjelölésiSzázalék,1,0)),\"\")","v":1},{"$f":"IF(COUNTA(Projektnyilvántartás!$I8,Projektnyilvántartás!$J8)<>2,\"\",DAYS360(Projektnyilvántartás!$I8,Projektnyilvántartás!$J8,FALSE))","v":19}]
[null,"5. projekt","3. kategória","2. alkalmazott",{"$f":"TODAY()-90","v":"2017-01-06"},{"$f":"TODAY()-50","v":"2017-02-15"},300,{"$f":"IF(COUNTA(Projektnyilvántartás!$E9,Projektnyilvántartás!$F9)<>2,\"\",DAYS360(Projektnyilvántartás!$E9,Projektnyilvántartás!$F9,FALSE))","v":39},{"$f":"TODAY()-90","v":"2017-01-06"},{"$f":"TODAY()-44","v":"2017-02-21"},{"$f":"IFERROR(IF(Projektnyilvántartás[Tényleges munkaidő (óra)]=0,\"\",IF(ABS((Projektnyilvántartás[[#This Row],[Tényleges munkaidő (óra)]]-Projektnyilvántartás[[#This Row],[Becsült munkaidő (óra)]])/Projektnyilvántartás[[#This Row],[Becsült munkaidő (óra)]])>MegjelölésiSzázalék,1,0)),\"\")","v":0},310,{"$f":"IFERROR(IF(Projektnyilvántartás[Tényleges időtartam (nap)]=0,\"\",IF(ABS((Projektnyilvántartás[[#This Row],[Tényleges időtartam (nap)]]-Projektnyilvántartás[[#This Row],[Becsült időtartam (nap)]])/Projektnyilvántartás[[#This Row],[Becsült időtartam (nap)]])>MegjelölésiSzázalék,1,0)),\"\")","v":0},{"$f":"IF(COUNTA(Projektnyilvántartás!$I9,Projektnyilvántartás!$J9)<>2,\"\",DAYS360(Projektnyilvántartás!$I9,Projektnyilvántartás!$J9,FALSE))","v":45}]
[null,"6. projekt","4. kategória","4. alkalmazott",{"$f":"TODAY()-60","v":"2017-02-05"},{"$f":"TODAY()-50","v":"2017-02-15"},500,{"$f":"IF(COUNTA(Projektnyilvántartás!$E10,Projektnyilvántartás!$F10)<>2,\"\",DAYS360(Projektnyilvántartás!$E10,Projektnyilvántartás!$F10,FALSE))","v":10},{"$f":"TODAY()-60","v":"2017-02-05"},{"$f":"TODAY()-45","v":"2017-02-20"},{"$f":"IFERROR(IF(Projektnyilvántartás[Tényleges munkaidő (óra)]=0,\"\",IF(ABS((Projektnyilvántartás[[#This Row],[Tényleges munkaidő (óra)]]-Projektnyilvántartás[[#This Row],[Becsült munkaidő (óra)]])/Projektnyilvántartás[[#This Row],[Becsült munkaidő (óra)]])>MegjelölésiSzázalék,1,0)),\"\")","v":0},510,{"$f":"IFERROR(IF(Projektnyilvántartás[Tényleges időtartam (nap)]=0,\"\",IF(ABS((Projektnyilvántartás[[#This Row],[Tényleges időtartam (nap)]]-Projektnyilvántartás[[#This Row],[Becsült időtartam (nap)]])/Projektnyilvántartás[[#This Row],[Becsült időtartam (nap)]])>MegjelölésiSzázalék,1,0)),\"\")","v":1},{"$f":"IF(COUNTA(Projektnyilvántartás!$I10,Projektnyilvántartás!$J10)<>2,\"\",DAYS360(Projektnyilvántartás!$I10,Projektnyilvántartás!$J10,FALSE))","v":15}]
[null,"7. projekt","5. kategória","1. alkalmazott",{"$f":"TODAY()-44","v":"2017-02-21"},{"$f":"TODAY()-20","v":"2017-03-17"},750,{"$f":"IF(COUNTA(Projektnyilvántartás!$E11,Projektnyilvántartás!$F11)<>2,\"\",DAYS360(Projektnyilvántartás!$E11,Projektnyilvántartás!$F11,FALSE))","v":26},{"$f":"TODAY()-44","v":"2017-02-21"},{"$f":"TODAY()-15","v":"2017-03-22"},{"$f":"IFERROR(IF(Projektnyilvántartás[Tényleges munkaidő (óra)]=0,\"\",IF(ABS((Projektnyilvántartás[[#This Row],[Tényleges munkaidő (óra)]]-Projektnyilvántartás[[#This Row],[Becsült munkaidő (óra)]])/Projektnyilvántartás[[#This Row],[Becsült munkaidő (óra)]])>MegjelölésiSzázalék,1,0)),\"\")","v":0},790,{"$f":"IFERROR(IF(Projektnyilvántartás[Tényleges időtartam (nap)]=0,\"\",IF(ABS((Projektnyilvántartás[[#This Row],[Tényleges időtartam (nap)]]-Projektnyilvántartás[[#This Row],[Becsült időtartam (nap)]])/Projektnyilvántartás[[#This Row],[Becsült időtartam (nap)]])>MegjelölésiSzázalék,1,0)),\"\")","v":0},{"$f":"IF(COUNTA(Projektnyilvántartás!$I11,Projektnyilvántartás!$J11)<>2,\"\",DAYS360(Projektnyilvántartás!$I11,Projektnyilvántartás!$J11,FALSE))","v":31}]
[null,"8. projekt","2. kategória","1. alkalmazott",{"$f":"TODAY()-39","v":"2017-02-26"},{"$f":"TODAY()","v":"2017-04-06"},450,{"$f":"IF(COUNTA(Projektnyilvántartás!$E12,Projektnyilvántartás!$F12)<>2,\"\",DAYS360(Projektnyilvántartás!$E12,Projektnyilvántartás!$F12,FALSE))","v":40},{"$f":"TODAY()-45","v":"2017-02-20"},{"$f":"TODAY()-5","v":"2017-04-01"},{"$f":"IFERROR(IF(Projektnyilvántartás[Tényleges munkaidő (óra)]=0,\"\",IF(ABS((Projektnyilvántartás[[#This Row],[Tényleges munkaidő (óra)]]-Projektnyilvántartás[[#This Row],[Becsült munkaidő (óra)]])/Projektnyilvántartás[[#This Row],[Becsült munkaidő (óra)]])>MegjelölésiSzázalék,1,0)),\"\")","v":0},430,{"$f":"IFERROR(IF(Projektnyilvántartás[Tényleges időtartam (nap)]=0,\"\",IF(ABS((Projektnyilvántartás[[#This Row],[Tényleges időtartam (nap)]]-Projektnyilvántartás[[#This Row],[Becsült időtartam (nap)]])/Projektnyilvántartás[[#This Row],[Becsült időtartam (nap)]])>MegjelölésiSzázalék,1,0)),\"\")","v":0},{"$f":"IF(COUNTA(Projektnyilvántartás!$I12,Projektnyilvántartás!$J12)<>2,\"\",DAYS360(Projektnyilvántartás!$I12,Projektnyilvántartás!$J12,FALSE))","v":41}]
[null,"9. projekt","4. kategória","1. alkalmazott","2016-02-05","2016-06-09",250,{"$f":"IF(COUNTA(Projektnyilvántartás!$E13,Projektnyilvántartás!$F13)<>2,\"\",DAYS360(Projektnyilvántartás!$E13,Projektnyilvántartás!$F13,FALSE))","v":124},"2016-03-05","2016-05-05",{"$f":"IFERROR(IF(Projektnyilvántartás[Tényleges munkaidő (óra)]=0,\"\",IF(ABS((Projektnyilvántartás[[#This Row],[Tényleges munkaidő (óra)]]-Projektnyilvántartás[[#This Row],[Becsült munkaidő (óra)]])/Projektnyilvántartás[[#This Row],[Becsült munkaidő (óra)]])>MegjelölésiSzázalék,1,0)),\"\")","v":0},200,{"$f":"IFERROR(IF(Projektnyilvántartás[Tényleges időtartam (nap)]=0,\"\",IF(ABS((Projektnyilvántartás[[#This Row],[Tényleges időtartam (nap)]]-Projektnyilvántartás[[#This Row],[Becsült időtartam (nap)]])/Projektnyilvántartás[[#This Row],[Becsült időtartam (nap)]])>MegjelölésiSzázalék,1,0)),\"\")","v":1},{"$f":"IF(COUNTA(Projektnyilvántartás!$I13,Projektnyilvántartás!$J13)<>2,\"\",DAYS360(Projektnyilvántartás!$I13,Projektnyilvántartás!$J13,FALSE))","v":60}]

{"sheet":"Beállítás","index":1,"n_rows":10,"n_cols":3,"rows_kept":10}
[null,"Beállítás"]
[]
[]
[null,"Kategória neve","Alkalmazott neve"]
[null,"1. kategória","1. alkalmazott"]
[null,"2. kategória","2. alkalmazott"]
[null,"3. kategória","3. alkalmazott"]
[null,"4. kategória","4. alkalmazott"]
[null,"5. kategória","5. alkalmazott"]
[null,"6. kategória","6. alkalmazott"]